fUSD/lending_fUSD_20240217
["ID","MTS","AMOUNT","RATE_DAILY","PERIOD"]
[314320866,1708182646839,-500.0,0.00053597,2]
[314320867,1708182646850,-500.0,0.00053597,2]
[314320868,1708182646862,-500.0,0.00053597,2]
[314320869,1708182646871,-400.0,0.00053597,2]
[314320871,1708182646880,-500.0,0.00053597,2]
[314320872,1708182646889,-500.0,0.00053597,2]
[314320873,1708182646899,-500.0,0.00053597,2]
[314320874,1708182646909,-500.0,0.00053597,2]
[314320875,1708182646920,-500.0,0.00053597,2]
[314320876,1708182646930,-500.0,0.00053597,2]
[314320878,1708182646939,-500.0,0.00053597,2]
[314320880,1708182646948,-500.0,0.00053597,2]
[314320882,1708182646957,-500.0,0.00053597,2]
[314320884,1708182646966,-500.0,0.00053597,2]
[314320885,1708182646976,-500.0,0.00053597,2]
[314320887,1708182646985,-500.0,0.00053597,2]
[314320889,1708182646995,-500.0,0.00053597,2]
[314320892,1708182647008,-500.0,0.00053597,2]
[314320894,1708182647018,-500.0,0.00053597,2]
[314320896,1708182647027,-500.0,0.00053597,2]
[314320897,1708182647036,-500.0,0.00053597,2]
[314320900,1708182647047,-500.0,0.00053597,2]
[314320901,1708182647057,-500.0,0.00053597,2]
[314320903,1708182647067,-500.0,0.00053597,2]
[314320904,1708182647078,-500.0,0.00053597,2]
[314320905,1708182647088,-500.0,0.00053597,2]
[314320906,1708182647100,-500.0,0.00053597,2]
[314320907,1708182647112,-500.0,0.00053597,2]
[314320908,1708182647122,-500.0,0.00053597,2]
[314320909,1708182647132,-500.0,0.00053597,2]
[314320910,1708182647141,-150.0,0.00053597,7]
[314320911,1708182647151,-708.0,0.00053597,120]
[314320912,1708182647160,-953.0,0.00053597,120]
[314320913,1708182647170,-1949.0,0.00053597,120]
[314320914,1708182647180,-1255.0,0.00053597,120]
[314320915,1708182647190,-216.0,0.00053597,120]
[314320916,1708182647199,-229.572,0.00053597,120]
[314320917,1708182647209,-150.0,0.00053607,7]
[314320918,1708182647218,-150.0,0.00053651,7]
[314320919,1708182647227,-200.0,0.00053669,66]
[314320920,1708182647236,-150.0,0.00053686,7]
[314320921,1708182647246,-200.0,0.00053698,7]
[314320922,1708182647255,-409.85,0.00053699,30]
[314320923,1708182647265,-915.91,0.00053699,30]
[314320924,1708182647275,-405.51,0.00053699,30]
[314320925,1708182647284,-915.91,0.00053699,30]
[314320926,1708182647294,-405.51,0.00053699,30]
[314320927,1708182647303,-915.91,0.00053699,30]
[314320928,1708182647313,-405.51,0.00053699,30]
[314320929,1708182647322,-915.91,0.00053699,30]
[314320930,1708182647331,-405.51,0.00053699,30]
[314320931,1708182647340,-317.73,0.00053699,30]
[314320932,1708182647350,-405.51,0.00053699,30]
[314320933,1708182647363,-405.51,0.00053699,30]
[314320934,1708182647373,-405.51,0.00053699,30]
[314320935,1708182647383,-405.51,0.00053699,30]
[314320936,1708182647392,-405.51,0.00053699,30]
[314320937,1708182647401,-405.51,0.00053699,30]
[314320938,1708182647410,-405.51,0.00053699,30]
[314320939,1708182647420,-405.51,0.00053699,30]
[314320940,1708182647429,-405.51,0.00053699,30]
[314320941,1708182647591,-153.0,0.00053703,120]
[314320942,1708182647601,-150.0,0.00053731,7]
[314320943,1708182647614,-387.1264877,0.00053746,87]
[314320944,1708182647623,-150.0,0.00053756,7]
[314320945,1708182647633,-2304.39598,0.0005378,67]
[314320946,1708182647642,-189.84494513,0.00053803,7]
[314320947,1708182647652,-200.0,0.00053821,30]
[314320948,1708182647661,-200.0,0.00053821,30]
[314320949,1708182647671,-200.0,0.00053821,30]
[314320950,1708182647681,-18606.39563081,0.00053841,4]
[314320951,1708182647692,-150.0,0.00053852,7]
[314320952,1708182647702,-150.0,0.00053854,7]
[314320953,1708182647712,-150.0,0.00053863,7]
[314320954,1708182647721,-150.0,0.00053872,7]
[314320955,1708182647732,-150.0,0.00053897,7]
[314320956,1708182647741,-200.0,0.00053898,98]
[314320957,1708182647751,-800.0,0.00053899,30]
[314320958,1708182647760,-32366.54574864,0.000539,30]
[314320959,1708182647770,-10000.0,0.000539,120]
[314320960,1708182647780,-206.0,0.00053938,20]
[314320961,1708182647789,-300.0,0.00053945,7]
[314320962,1708182647799,-152.0,0.00053956,8]
[314320963,1708182647808,-150.0,0.00053957,7]
[314320964,1708182647817,-1151.0,0.0005396,30]
[314320965,1708182647827,-300.0,0.00053961,7]
[314320966,1708182647836,-300.0,0.00053968,7]
[314320967,1708182647845,-150.0,0.00053996,7]
[314320968,1708182647854,-150.0,0.00053997,7]
[314320969,1708182647868,-165.40063134,0.00053999,30]
[314320970,1708182647877,-150.0,0.00053999,30]
[314320971,1708182647886,-6982.39311,0.00054,2]
[314320972,1708182647896,-94909.25653396,0.00054,120]
[314320973,1708182647906,-182.00450485,0.00054,120]
[314320974,1708182647916,-154128.66,0.00054,120]
[314320975,1708182647926,-106354.21,0.00054,120]
[314320976,1708182647935,-2000.0,0.00054,70]
[314320977,1708182647945,-1159701.8278401,0.00054,30]
[314320978,1708182647954,-45048.0,0.00054,60]
[314320979,1708182647964,-2023.45,0.00054,90]
[314320980,1708182647973,-398.90005479,0.00054,2]
[314320981,1708182647983,-348.55768767,0.00054,2]
[314320982,1708182647992,-5000.0,0.00054,30]
[314320983,1708182648006,-150.0,0.00054001,7]
[314320984,1708182648015,-150.0,0.00054002,7]
[314320985,1708182648024,-300.0,0.00054012,7]
[314320986,1708182648033,-150.0,0.00054024,7]
[314320987,1708182648043,-570.0,0.00054027,12]
[314320988,1708182648052,-1500.0,0.00054034,7]
[314320989,1708182648061,-150.0,0.0005404,7]
[314320990,1708182648070,-150.0,0.00054052,7]
[314320991,1708182648079,-1500.0,0.00054057,7]
[314320992,1708182648088,-150.0,0.00054072,7]
[314320993,1708182648099,-150.0,0.00054072,7]
[314320994,1708182648110,-150.0,0.00054074,7]
[314320995,1708182648121,-150.0,0.00054078,7]
[314320996,1708182648131,-200.0,0.0005408,30]
[314320997,1708182648140,-150.0,0.00054091,7]
[314320998,1708182648149,-150.0,0.00054094,7]
[314320999,1708182648158,-150.0,0.00054095,7]
[314321000,1708182648168,-150.0,0.00054103,7]
[314321001,1708182648177,-150.0,0.0005411,7]
[314321002,1708182648187,-150.0,0.00054118,7]
[314321003,1708182648196,-300.0,0.00054123,7]
[314321004,1708182648206,-1500.0,0.00054129,7]
[314321005,1708182648215,-150.0,0.00054131,7]
[314321006,1708182648225,-150.0,0.00054133,7]
[314321007,1708182648234,-300.0,0.00054136,7]
[314321008,1708182648243,-250.0,0.00054149,2]
[314321009,1708182648253,-500.0,0.00054149,2]
[314321010,1708182648262,-500.0,0.00054149,2]
[314321011,1708182648271,-500.0,0.00054149,2]
[314321012,1708182648280,-500.0,0.00054149,2]
[314321013,1708182648290,-500.0,0.00054149,2]
[314321014,1708182648299,-500.0,0.00054149,2]
[314321015,1708182648308,-500.0,0.00054149,2]
[314321016,1708182648318,-500.0,0.00054149,2]
[314321017,1708182648327,-500.0,0.00054149,2]
[314321018,1708182648336,-500.0,0.00054149,2]
[314321019,1708182648345,-500.0,0.00054149,2]
[314321020,1708182648354,-500.0,0.00054149,2]
[314321021,1708182648366,-500.0,0.00054149,2]
[314321022,1708182648375,-500.0,0.00054149,2]
[314321023,1708182648385,-500.0,0.00054149,2]
[314321024,1708182648394,-500.0,0.00054149,2]
[314321025,1708182648403,-500.0,0.00054149,2]
[314321026,1708182648412,-500.0,0.00054149,2]
[314321027,1708182648421,-500.0,0.00054149,2]
[314321028,1708182648430,-500.0,0.00054149,2]
[314321029,1708182648439,-150.0,0.00054149,2]
[314321030,1708182648449,-500.0,0.00054149,2]
[314321031,1708182648458,-500.0,0.00054149,2]
[314321032,1708182648468,-500.0,0.00054149,2]
[314321033,1708182648478,-500.0,0.00054149,2]
[314321034,1708182648488,-500.0,0.00054149,2]
[314321035,1708182648498,-500.0,0.00054149,2]
[314321036,1708182648507,-500.0,0.00054149,2]
[314321037,1708182648517,-500.0,0.00054149,2]
[314321038,1708182648526,-500.0,0.00054149,2]
[314321039,1708182648536,-500.0,0.00054149,2]
[314321040,1708182648545,-500.0,0.00054149,2]
[314321041,1708182648554,-500.0,0.00054149,2]
[314321042,1708182648563,-500.0,0.00054149,2]
[314321043,1708182648573,-500.0,0.00054149,2]
[314321044,1708182648583,-500.0,0.00054149,2]
[314321045,1708182648592,-500.0,0.00054149,2]
[314321046,1708182648601,-500.0,0.00054149,2]
[314321047,1708182648610,-500.0,0.00054149,2]
[314321048,1708182648621,-500.0,0.00054149,2]
[314321049,1708182648630,-500.0,0.00054149,2]
[314321050,1708182648640,-500.0,0.00054149,2]
[314321051,1708182648650,-500.0,0.00054149,2]
[314321052,1708182648659,-500.0,0.00054149,2]
[314321053,1708182648669,-500.0,0.00054149,2]
[314321054,1708182648679,-500.0,0.00054149,2]
[314321055,1708182648689,-500.0,0.00054149,2]
[314321056,1708182648698,-500.0,0.00054149,2]
[314321057,1708182648707,-500.0,0.00054149,2]
[314321058,1708182648716,-500.0,0.00054149,2]
[314321059,1708182648725,-500.0,0.00054149,2]
[314321060,1708182648734,-500.0,0.00054149,2]
[314321061,1708182648744,-500.0,0.00054149,2]
[314321062,1708182648753,-500.0,0.00054149,2]
[314321063,1708182648764,-150.01,0.00054149,2]
[314321064,1708182648775,-3317.68767406,0.00054149,2]
[314321065,1708182648785,-150.0,0.00054158,7]
[314321066,1708182648794,-150.0,0.00054161,7]
[314321067,1708182648804,-150.0,0.00054171,7]
[314321068,1708182648813,-1500.0,0.00054171,7]
[314321069,1708182648822,-150.0,0.00054174,7]
[314321070,1708182648831,-1088.77,0.00054174,2]
[314321071,1708182648840,-150.0,0.00054189,7]
[314321072,1708182648849,-150.0,0.00054192,7]
[314321073,1708182648858,-150.0,0.00054197,7]
[314321074,1708182648869,-150.0,0.00054197,7]
[314321075,1708182648878,-150.0,0.00054199,30]
[314321076,1708182648887,-150.0,0.00054199,7]
[314321077,1708182648896,-4000.0,0.000542,31]
[314321078,1708182648905,-200.0,0.000542,30]
[314321079,1708182648917,-150.0,0.00054201,7]
[314321080,1708182648927,-150.0,0.00054201,7]
[314321081,1708182648937,-150.0,0.00054202,7]
[314321082,1708182648947,-150.0,0.00054204,7]
[314321083,1708182648957,-150.0,0.00054214,7]
[314321084,1708182648965,-155.0,0.00054214,7]
[314321085,1708182648975,-387.1264877,0.0005422,90]
[314321086,1708182648984,-150.0,0.0005422,7]
[314321087,1708182648993,-150.0,0.0005422,7]
[314321088,1708182649002,-1500.0,0.00054231,7]
[314321089,1708182649013,-150.0,0.00054243,7]
[314321090,1708182649024,-300.0,0.00054244,7]
[314321091,1708182649032,-500.0,0.00054244,2]
[314321092,1708182649042,-500.0,0.00054244,2]
[314321093,1708182649051,-500.0,0.00054244,2]
[314321094,1708182649062,-289.0985,0.00054244,2]
[314321095,1708182649071,-1000.0,0.00054244,2]
[314321096,1708182649080,-1000.0,0.00054244,2]
[314321097,1708182649090,-1000.0,0.00054244,2]
[314321098,1708182649100,-1000.0,0.00054244,2]
[314321099,1708182649110,-1000.0,0.00054244,2]
[314321100,1708182649121,-1000.0,0.00054244,2]
[314321101,1708182649129,-1000.0,0.00054244,2]
[314321102,1708182649139,-1000.0,0.00054244,2]
[314321103,1708182649147,-1000.0,0.00054244,2]
[314321104,1708182649157,-434.9416,0.00054244,2]
[314321105,1708182649166,-310.49241517,0.00054246,7]
[314321106,1708182649176,-330.31,0.00054247,60]
[314321107,1708182649187,-422.68,0.00054247,30]
[314321108,1708182649195,-412.14,0.00054247,30]
[314321109,1708182649206,-150.0,0.00054247,30]
[314321110,1708182649215,-419.0,0.00054247,30]
[314321111,1708182649225,-152.54,0.00054247,30]
[314321112,1708182649234,-300.0,0.00054247,30]
[314321113,1708182649242,-150.0,0.00054247,30]
[314321114,1708182649252,-343.57,0.00054247,30]
[314321115,1708182649261,-412.14,0.00054247,30]
[314321116,1708182649270,-422.68,0.00054247,30]
[314321117,1708182649279,-150.0,0.00054247,30]
[314321118,1708182649288,-150.0,0.00054247,30]
[314321119,1708182649297,-419.0,0.00054247,30]
[314321120,1708182649306,-343.57,0.00054247,30]
[314321121,1708182649315,-419.0,0.00054247,30]
[314321122,1708182649324,-422.68,0.00054247,30]
[314321123,1708182649333,-150.0,0.00054247,30]
[314321124,1708182649343,-412.14,0.00054247,30]
[314321125,1708182649351,-343.57,0.00054247,30]
[314321126,1708182649361,-150.0,0.00054247,30]
[314321127,1708182649371,-412.14,0.00054247,30]
[314321128,1708182649380,-422.68,0.00054247,30]
[314321129,1708182649389,-150.0,0.00054247,30]
[314321130,1708182649399,-343.57,0.00054247,30]
[314321131,1708182649407,-419.0,0.00054247,30]
[314321132,1708182649416,-150.0,0.00054247,30]
[314321133,1708182649426,-179.04,0.00054247,30]
[314321134,1708182649436,-412.14,0.00054247,30]
[314321135,1708182649445,-419.0,0.00054247,30]
[314321136,1708182649454,-343.57,0.00054247,30]
[314321137,1708182649463,-150.0,0.00054247,30]
[314321138,1708182649473,-412.14,0.00054247,30]
[314321139,1708182649482,-348.82,0.00054247,30]
[314321140,1708182649490,-150.0,0.00054247,30]
[314321141,1708182649499,-846.37,0.00054247,30]
[314321142,1708182649508,-300.0,0.00054247,30]
[314321143,1708182649517,-412.14,0.00054247,30]
[314321144,1708182649526,-412.14,0.00054247,30]
[314321145,1708182649536,-412.14,0.00054247,30]
[314321146,1708182649545,-412.14,0.00054247,30]
[314321147,1708182649554,-412.14,0.00054247,30]
[314321148,1708182649563,-412.14,0.00054247,30]
[314321149,1708182649572,-412.14,0.00054247,30]
[314321150,1708182649581,-412.14,0.00054247,30]
[314321151,1708182649590,-412.14,0.00054247,30]
[314321152,1708182649599,-306.04,0.00054247,30]
[314321153,1708182649608,-170.816,0.0005425,120]
[314321154,1708182649620,-153.0,0.00054251,120]
[314321155,1708182649629,-150.0,0.00054262,7]
[314321156,1708182649638,-150.0,0.00054264,7]
[314321157,1708182649647,-150.0,0.00054268,7]
[314321158,1708182649657,-150.0,0.00054268,7]
[314321159,1708182649665,-150.0,0.00054276,7]
[314321160,1708182649674,-150.0,0.00054277,7]
[314321161,1708182649683,-150.0,0.00054277,7]
[314321162,1708182649692,-1500.0,0.0005428,7]
[314321163,1708182649701,-1500.0,0.00054282,7]
[314321164,1708182649709,-132387.4767508,0.00054284,2]
[314321165,1708182649719,-5277.0071686,0.00054284,2]
[314321166,1708182649728,-150.0,0.00054291,7]
[314321167,1708182649737,-150.0,0.00054292,7]
[314321168,1708182649746,-150.0,0.00054297,30]
[314321169,1708182649755,-150.0,0.00054297,7]
[314321170,1708182649764,-217114.96138547,0.00054298,120]
[314321171,1708182649773,-1212.91218193,0.00054298,4]
[314321172,1708182649782,-2000.0,0.00054298,15]
[314321173,1708182649791,-200.0,0.00054298,15]
[314321174,1708182649800,-386.47327606,0.000543,120]
[314321175,1708182649809,-210.0,0.000543,2]
[314321176,1708182649818,-150.0,0.00054302,7]
[314321177,1708182649826,-150.0,0.00054302,7]
[314321178,1708182649835,-300.0,0.00054307,7]
[314321179,1708182649844,-858.34124763,0.00054308,2]
[314321180,1708182649853,-150.0,0.00054313,7]
[314321181,1708182649864,-150.0,0.00054315,7]
[314321182,1708182649873,-300.0,0.00054315,7]
[314321183,1708182649882,-500.0,0.00054315,120]
[314321184,1708182649891,-782.41,0.00054317,60]
[314321185,1708182649900,-300.0,0.00054321,7]
[314321186,1708182649909,-3000.0,0.00054324,45]
[314321187,1708182649918,-150.0,0.00054331,7]
[314321188,1708182649928,-150.0,0.00054334,7]
[314321189,1708182649937,-300.0,0.00054341,7]
[314321190,1708182649946,-150.0,0.00054345,7]
[314321191,1708182649955,-1500.0,0.00054353,7]
[314321192,1708182649964,-150.0,0.00054361,7]
[314321193,1708182649973,-150.0,0.00054363,7]
[314321194,1708182649983,-150.0,0.00054367,7]
[314321195,1708182649992,-150.0,0.00054376,7]
[314321196,1708182650002,-500.0,0.00054384,120]
[314321197,1708182650012,-150.0,0.00054384,7]
[314321198,1708182650022,-1500.0,0.00054385,7]
[314321199,1708182650147,-300.0,0.00054388,7]
[314321200,1708182650157,-150.0,0.00054393,7]
[314321201,1708182650166,-24858.93787314,0.00054397,2]
[314321202,1708182650176,-1500.0,0.00054398,7]
[314321203,1708182650186,-455503.06047863,0.000544,120]
[314321204,1708182650195,-14578.91279824,0.000544,4]
[314321205,1708182650204,-25000.0,0.000544,120]
[314321206,1708182650214,-4000.0,0.000544,35]
[314321207,1708182650224,-227129.13553057,0.000544,120]
[314321208,1708182650232,-150.85,0.000544,30]
[314321209,1708182650242,-2304.39597,0.000544,70]
[314321210,1708182650252,-300.0,0.00054406,7]
[314321211,1708182650261,-150.0,0.00054425,7]
[314321212,1708182650270,-989.48310961,0.00054432,7]
[314321213,1708182650279,-189.7217959,0.00054436,7]
[314321214,1708182650288,-1500.0,0.00054437,7]
[314321215,1708182650297,-150.0,0.00054438,7]
[314321216,1708182650306,-26244.77252257,0.0005444,15]
[314321217,1708182650316,-156.0,0.00054442,120]
[314321218,1708182650325,-688.00780003,0.00054443,120]
[314321219,1708182650335,-150.0,0.00054443,7]
[314321220,1708182650344,-206.0,0.00054443,22]
[314321221,1708182650353,-150.0,0.00054447,7]
[314321222,1708182650363,-150.0,0.00054447,7]
[314321223,1708182650373,-500.0,0.00054452,120]
[314321224,1708182650382,-150.0,0.00054456,7]
[314321225,1708182650392,-688.00780003,0.00054457,120]
[314321226,1708182650401,-688.00780003,0.00054457,120]
[314321227,1708182650410,-150.0,0.00054458,7]
[314321228,1708182650420,-150.0,0.00054461,7]
[314321229,1708182650429,-150.0,0.00054462,7]
[314321230,1708182650439,-300.0,0.00054466,7]
[314321231,1708182650448,-150.0,0.00054468,7]
[314321232,1708182650457,-150.0,0.00054468,7]
[314321233,1708182650467,-2009.57004619,0.00054492,120]
[314321234,1708182650476,-150.0,0.00054494,7]
[314321235,1708182650485,-1500.0,0.00054495,7]
[314321236,1708182650495,-150.0,0.00054499,7]
[314321237,1708182650504,-2596.49516785,0.000545,120]
[314321238,1708182650513,-150.0,0.000545,7]
[314321239,1708182650523,-150.0,0.000545,7]
[314321240,1708182650532,-347.0,0.000545,30]
[314321241,1708182650542,-1000.0,0.000545,30]
[314321242,1708182650551,-898.0,0.000545,30]
[314321243,1708182650561,-351.61440832,0.00054501,7]
[314321244,1708182650571,-1500.0,0.00054501,7]
[314321245,1708182650580,-688.00780003,0.00054505,120]
[314321246,1708182650591,-1151.0,0.00054511,30]
[314321247,1708182650600,-150.0,0.00054514,7]
[314321248,1708182650610,-1500.0,0.00054514,7]
[314321249,1708182650620,-150.0,0.00054515,7]
[314321250,1708182650629,-150.0,0.00054519,7]
[314321251,1708182650638,-500.0,0.00054521,120]
[314321252,1708182650647,-150.0,0.00054525,7]
[314321253,1708182650656,-150.0,0.00054525,7]
[314321254,1708182650666,-688.00780003,0.00054526,120]
[314321255,1708182650675,-150.0,0.00054528,7]
[314321256,1708182650685,-150.0,0.00054528,7]
[314321257,1708182650695,-300.0,0.00054533,7]
[314321258,1708182650705,-156.04201361,0.00054536,60]
[314321259,1708182650714,-688.00780003,0.00054541,120]
[314321260,1708182650724,-150.0,0.00054549,7]
[314321261,1708182650734,-688.00780003,0.00054551,120]
[314321262,1708182650743,-150.0,0.00054555,7]
[314321263,1708182650753,-150.0,0.00054564,7]
[314321264,1708182650762,-150.0,0.00054567,7]
[314321265,1708182650772,-150.0,0.00054573,7]
[314321266,1708182650782,-150.0,0.00054574,7]
[314321267,1708182650791,-300.0,0.00054587,7]
[314321268,1708182650800,-150.0,0.00054587,7]
[314321269,1708182650810,-500.0,0.00054589,120]
[314321270,1708182650819,-1500.0,0.00054597,7]
[314321271,1708182650829,-1500.0,0.00054597,7]
[314321272,1708182650839,-150.0,0.00054599,7]
[314321273,1708182650849,-3441.559345,0.000546,40]
[314321274,1708182650858,-173.07248114,0.00054603,120]
[314321275,1708182650870,-300.0,0.00054604,7]
[314321276,1708182650879,-150.0,0.00054609,7]
[314321277,1708182650888,-150.0,0.00054614,7]
[314321278,1708182650898,-150.0,0.00054619,7]
[314321279,1708182650907,-150.0,0.00054621,7]
[314321280,1708182650916,-150.0,0.00054626,7]
[314321281,1708182650926,-150.0,0.00054629,7]
[314321282,1708182650935,-150.0,0.0005463,7]
[314321283,1708182650945,-1500.0,0.0005463,7]
[314321284,1708182650954,-150.0,0.00054632,7]
[314321285,1708182650964,-150.0,0.00054641,7]
[314321286,1708182650973,-150.0,0.00054655,7]
[314321287,1708182650983,-150.0,0.00054656,7]
[314321288,1708182650992,-500.0,0.00054658,120]
[314321289,1708182651002,-150.0,0.00054659,7]
[314321290,1708182651012,-150.0,0.0005466,7]
[314321291,1708182651023,-1500.0,0.00054662,7]
[314321292,1708182651033,-150.0,0.00054665,7]
[314321293,1708182651043,-150.0,0.00054665,7]
[314321294,1708182651052,-17035.05449019,0.00054668,2]
[314321295,1708182651062,-14735.26108158,0.00054668,15]
[314321296,1708182651072,-2330610.53076791,0.00054668,33]
[314321297,1708182651081,-150.0,0.00054694,7]
[314321298,1708182651091,-387.1264877,0.00054694,92]
[314321299,1708182651102,-300.0,0.00054695,7]
[314321300,1708182651112,-300.0,0.00054697,7]
[314321301,1708182651123,-150.0,0.00054699,7]
[314321302,1708182651132,-500.0,0.000547,14]
[314321303,1708182651141,-150.0,0.00054701,7]
[314321304,1708182651151,-150.0,0.00054705,7]
[314321305,1708182651160,-160.0,0.00054712,120]
[314321306,1708182651169,-150.0,0.00054718,7]
[314321307,1708182651178,-150.0,0.00054722,7]
[314321308,1708182651187,-384.96060738,0.00054724,7]
[314321309,1708182651197,-500.0,0.00054726,120]
[314321310,1708182651206,-5086.1632491,0.0005473,2]
[314321311,1708182651215,-150.0,0.00054734,7]
[314321312,1708182651224,-24858.93787314,0.00054735,2]
[314321313,1708182651233,-127599.6596909,0.00054738,2]
[314321314,1708182651242,-150.0,0.00054739,7]
[314321315,1708182651251,-150.0,0.0005474,7]
[314321316,1708182651260,-150.0,0.00054744,7]
[314321317,1708182651270,-150.0,0.0005475,7]
[314321318,1708182651279,-150.0,0.00054753,7]
[314321319,1708182651288,-1237.1449519,0.00054755,2]
[314321320,1708182651297,-2830.3163517,0.00054755,2]
[314321321,1708182651306,-150.0,0.00054755,7]
[314321322,1708182651316,-1155.4260434,0.00054756,2]
[314321323,1708182651325,-3267.5362771,0.00054757,2]
[314321324,1708182651335,-122811.8426311,0.00054757,2]
[314321325,1708182651344,-16000.0,0.00054759,20]
[314321326,1708182651355,-150.0,0.00054762,7]
[314321327,1708182651364,-4895.3193297,0.00054762,2]
[314321328,1708182651374,-726.00250677,0.00054768,10]
[314321329,1708182651383,-865.76443847,0.00054768,60]
[314321330,1708182651392,-16000.0,0.00054768,20]
[314321331,1708182651401,-2630.52853167,0.00054768,33]
[314321332,1708182651410,-152.49751534,0.00054774,60]
[314321333,1708182651420,-16000.0,0.00054775,20]
[314321334,1708182651429,-39553.20833318,0.0005478,2]
[314321335,1708182651439,-308.33648603,0.00054783,90]
[314321336,1708182651448,-16000.0,0.00054784,20]
[314321337,1708182651458,-24858.93787314,0.00054791,2]
[314321338,1708182651467,-312.79037097,0.00054793,90]
[314321339,1708182651477,-308.33648603,0.00054793,90]
[314321340,1708182651486,-1000.0,0.00054793,2]
[314321341,1708182651495,-1000.0,0.00054793,2]
[314321342,1708182651504,-221.548353,0.00054794,120]
[314321343,1708182651514,-1686.209552,0.00054794,30]
[314321344,1708182651523,-299.88074,0.00054794,30]
[314321345,1708182651532,-2998.807402,0.00054794,30]
[314321346,1708182651541,-772.47644,0.00054794,120]
[314321347,1708182651551,-2399.045921,0.00054794,30]
[314321348,1708182651560,-4798.091843,0.00054794,30]
[314321349,1708182651569,-772.47644,0.00054794,120]
[314321350,1708182651579,-1499.403701,0.00054794,30]
[314321351,1708182651587,-241.398887,0.00054794,120]
[314321352,1708182651597,-539.50685175,0.00054794,30]
[314321353,1708182651606,-546.942237,0.00054794,30]
[314321354,1708182651617,-342.221889,0.00054794,30]
[314321355,1708182651626,-298.487528,0.00054794,120]
[314321356,1708182651635,-284.886703,0.00054794,30]
[314321357,1708182651644,-409.269187,0.00054794,30]
[314321358,1708182651654,-202.775065,0.00054794,120]
[314321359,1708182651663,-154.495288,0.00054794,120]
[314321360,1708182651672,-357.270353,0.00054794,120]
[314321361,1708182651681,-4607.599551,0.00054794,30]
[314321362,1708182651691,-500.0,0.00054794,120]
[314321363,1708182651701,-500.0,0.00054794,120]
[314321364,1708182651710,-514.20951903,0.00054794,120]
[314321365,1708182651720,-500.0,0.00054794,120]
[314321366,1708182651730,-506.07509209,0.00054794,120]
[314321367,1708182651739,-1000.0,0.00054794,2]
[314321368,1708182651748,-405.211294,0.00054794,120]
[314321369,1708182651758,-2257.87812,0.00054794,30]
[314321370,1708182651768,-564.02851858,0.00054794,120]
[314321371,1708182651778,-509.62921686,0.00054794,120]
[314321372,1708182651787,-502.40291297,0.00054794,120]
[314321373,1708182651797,-500.0,0.00054794,120]
[314321374,1708182651807,-250.931978,0.00054794,120]
[314321375,1708182651818,-502.44375823,0.00054794,120]
[314321376,1708182651828,-509.69900784,0.00054794,120]
[314321377,1708182651838,-189.76242111,0.00054794,120]
[314321378,1708182651847,-500.0,0.00054794,15]
[314321379,1708182651858,-511.29675513,0.00054794,15]